bitfinex/quotes_ETHUSD_20230403
["timestamp","ask_amount","ask_price","bid_price","bid_amount"]
[1680557894807,0.11000001,1785.7,1785.6,25.4499007]
[1680557897597,0.11000001,1785.7,1785.6,27.16636332]
[1680557897803,0.11000001,1785.7,1785.6,28.62358357]
[1680557897992,0.11000001,1785.7,1785.6,27.16636332]
[1680557899739,0.11000001,1785.7,1785.6,25.74636332]
[1680557900504,0.11000001,1785.7,1785.6,26.62322811]
[1680557901245,0.11000001,1785.7,1785.6,25.74636332]
[1680557901612,0.11000001,1785.7,1785.6,26.62317284]
[1680557902019,0.11000001,1785.7,1785.6,25.03836332]
[1680557902845,0.11000001,1785.7,1785.6,25.26861223]
[1680557903029,0.11000001,1785.7,1785.6,24.39182384]
[1680557904609,0.11000001,1785.7,1785.6,25.26868725]
[1680557905619,0.11000001,1785.7,1785.6,26.26868725]
[1680557906208,0.11000001,1785.7,1785.6,25.09540202]
[1680557906622,0.11000001,1785.7,1785.6,26.26868725]
[1680557906822,0.11000001,1785.7,1785.6,25.39182384]
[1680557907056,0.11000001,1785.7,1785.6,26.26870936]
[1680557907256,0.11000001,1785.7,1785.6,25.39182384]
[1680557907764,0.11000001,1785.7,1785.6,26.2687106]
[1680557908242,0.10707067,1785.7,1785.6,26.2687106]
[1680557908437,0.10707067,1785.7,1785.6,26.09482384]
[1680557909038,0.10707067,1785.7,1785.6,25.39182384]
[1680557911031,0.10707067,1785.7,1785.6,24.39182384]
[1680557911976,0.11000001,1786.6,1785.7,1.0]
[1680557912276,0.005,1786.3,1786.2,6.73574]
[1680557912487,0.11000001,1786.4,1786.2,6.40592]
[1680557912690,0.11000001,1786.4,1786.3,0.23]
[1680557912871,0.11000001,1786.4,1786.3,0.248]
[1680557913038,0.11000001,1786.4,1786.3,0.4238478]
[1680557913255,0.11000001,1786.4,1786.3,0.7037478]
[1680557913570,0.11000001,1786.4,1786.3,4.02957998]
[1680557914176,0.11000001,1786.4,1786.3,9.92557998]
[1680557914503,0.11000001,1786.4,1786.3,11.34157998]
[1680557914694,0.11000001,1786.4,1786.3,15.217627]
[1680557915394,0.11000001,1786.4,1786.3,14.34157998]
[1680557915898,0.11000001,1786.4,1786.3,15.56943937]
[1680557917196,0.11000001,1786.4,1786.3,14.15343937]
[1680557917855,0.11000001,1786.4,1786.3,15.39843937]
[1680557918745,0.11000001,1786.6,1786.5,1.0]
[1680557918953,0.11000001,1786.6,1786.5,16.8098541]
[1680557919155,0.11000001,1786.6,1786.5,25.3436441]
[1680557919360,0.11000001,1786.6,1786.5,26.3436441]
[1680557919554,0.11000001,1786.6,1786.5,43.4099441]
[1680557919791,0.11000001,1786.6,1786.5,43.7037792]
[1680557920493,0.11000001,1786.8,1786.5,47.0687792]
[1680557920693,0.11000001,1786.8,1786.7,9.91502218]
[1680557920895,0.11000001,1786.8,1786.7,15.10393218]
[1680557921072,0.11000001,1786.8,1786.7,15.12193218]
[1680557921401,0.11000001,1786.8,1786.7,15.7039924]
[1680557921606,0.11000001,1786.8,1786.7,15.12193218]
[1680557921783,0.11000001,1786.8,1786.7,17.10501319]
[1680557924209,0.11000001,1786.8,1786.7,17.66653519]
[1680557925999,0.11000001,1786.8,1786.7,16.41353519]
[1680557927068,0.11000001,1786.8,1786.7,9.85599101]
[1680557927322,0.11000001,1786.8,1786.7,0.018]
[1680557927498,0.11000001,1786.8,1786.7,2.78402218]
[1680557927681,0.11000001,1786.8,1786.7,3.04586218]
[1680557928026,0.11000001,1786.8,1786.7,2.78402218]
[1680557928186,0.11000001,1787.5,1787.0,2.76602218]
[1680557928389,0.11000001,1787.5,1787.4,8.66202218]
[1680557928589,0.11000001,1787.5,1787.4,8.94975218]
[1680557928773,0.11000001,1787.5,1787.4,10.64216218]
[1680557928981,0.11000001,1787.5,1787.4,28.19586218]
[1680557929319,0.11000001,1787.5,1787.4,31.0154484]
[1680557929486,0.11000001,1787.5,1787.4,34.2454484]
[1680557930881,0.193018,1787.8,1787.4,35.37592819]
[1680557931084,0.193018,1787.8,1787.7,10.61982218]
[1680557931311,0.193018,1787.8,1787.7,10.63982218]
[1680557931527,0.193018,1787.8,1787.7,11.9338044]
[1680557931921,0.08022667,1787.8,1787.7,13.06171773]
[1680557932690,0.14098844,1788.5,1788.4,8.66202218]
[1680557932912,0.14913655,1788.6,1788.4,8.68202218]
[1680557933139,0.14913655,1788.6,1788.5,10.5989044]
[1680557933348,0.14913655,1788.6,1788.5,10.6189044]
[1680557934531,0.14913655,1788.6,1788.5,4.1637844]
[1680557934850,0.14913655,1788.6,1788.5,3.85270218]
[1680557935761,0.14913655,1788.6,1788.5,3.29358218]
[1680557936665,0.14913655,1788.6,1788.5,9.18958218]
[1680557936810,0.14913655,1788.6,1788.5,9.19158218]
[1680557937722,0.99913655,1788.9,1788.5,9.19158218]
[1680557937908,0.99913655,1788.9,1788.8,0.27951]
[1680557938244,0.99913655,1788.9,1788.8,2.78402218]
[1680557938415,0.99913655,1788.9,1788.8,3.06353218]
[1680557938621,0.99913655,1788.9,1788.8,2.78402218]
[1680557938812,0.006,1789.0,1788.8,3.3239344]
[1680557939011,0.99913655,1789.0,1788.9,2.99602218]
[1680557939212,1.00513655,1789.0,1788.9,3.01402218]
[1680557939424,0.99913655,1789.0,1788.9,2.78402218]
[1680557940337,0.99913655,1789.0,1788.9,2.76602218]
[1680557940754,0.99913655,1789.0,1788.9,3.04552218]
[1680557940942,0.99913655,1789.0,1788.9,4.15847324]
[1680557941463,0.99913655,1789.0,1788.9,4.65232056]
[1680557941668,1.00513655,1789.1,1788.9,5.45932056]
[1680557941829,1.00513655,1789.1,1788.9,5.46132056]
[1680557942029,1.00513655,1789.1,1788.9,4.90232056]
[1680557942265,1.00513655,1789.1,1789.0,0.23]
[1680557942433,0.99913655,1789.1,1789.0,2.99602218]
[1680557942635,0.99913655,1789.1,1789.0,2.76602218]
[1680557942965,0.99913655,1789.1,1788.9,1.11495106]
[1680557942966,8.0,1789.0,1788.9,1.11495106]
[1680557943129,9.53448,1789.0,1788.9,1.11295106]
[1680557943332,9.55810448,1789.0,1788.9,1.11295106]
[1680557943544,9.56410448,1789.0,1788.9,1.11295106]
[1680557943749,14.002889,1789.0,1788.9,1.11295106]
[1680557943941,0.99913655,1788.9,1788.8,0.76]
[1680557944168,1.28462448,1789.0,1788.8,3.52602218]
[1680557944470,2.25813655,1789.0,1788.9,2.76602218]
[1680557944683,2.25813655,1789.0,1788.9,2.99602218]
[1680557944684,0.006,1789.0,1788.9,2.99602218]
[1680557944887,0.006,1789.0,1788.9,4.49847747]
[1680557945053,1.5975057,1789.2,1788.9,10.69197747]
[1680557945249,2.59664225,1789.2,1789.0,2.99602218]
[1680557945433,2.59664225,1789.2,1789.0,3.01402218]
[1680557945967,3.84964225,1789.2,1789.1,1.07171757]
[1680557946139,3.84964225,1789.2,1789.1,3.83773975]
[1680557946477,4.12909225,1789.2,1789.1,3.83773975]
[1680557946643,3.84964225,1789.2,1789.1,3.83773975]
[1680557946845,5.48080648,1789.2,1789.1,1.07171757]
[1680557947051,5.48280648,1789.2,1789.1,1.07171757]
[1680557947246,5.09764225,1789.2,1789.1,1.07171757]
[1680557948172,5.09764225,1789.2,1788.9,0.018]
[1680557948371,3.84464225,1789.2,1789.0,2.76602218]
[1680557948679,1.245,1789.1,1789.0,2.76602218]
[1680557948878,1.251,1789.1,1789.0,2.76602218]
[1680557950867,1.251,1789.1,1788.9,0.018]
[1680557951059,1.251,1789.0,1788.9,2.78402218]
[1680557951693,1.251,1789.0,1788.9,3.06352218]
[1680557951900,1.251,1789.0,1788.9,2.78402218]
[1680557952092,0.006,1789.1,1788.9,2.78402218]
[1680557952296,3.84264225,1789.2,1788.9,2.78402218]
[1680557952593,3.84264225,1789.2,1789.0,2.76602218]
[1680557955214,4.68099225,1789.2,1789.0,2.76602218]
[1680557955437,1.253,1789.1,1788.9,0.018]
[1680557955648,1.251,1789.0,1788.9,2.78402218]
[1680557955823,1.259,1789.1,1788.9,2.78402218]
[1680557956134,1.253,1789.1,1789.0,2.76602218]
[1680557956946,1.253,1789.1,1789.0,2.78402218]
[1680557957100,1.253,1789.1,1789.0,2.76602218]
[1680557958372,1.5935057,1789.2,1789.0,3.6213944]
[1680557958506,1.5915057,1789.2,1789.1,2.76602218]
[1680557958854,1.5915057,1789.2,1789.1,3.93781262]
[1680557959055,1.5915057,1789.2,1789.1,3.01402218]
[1680557959719,1.58987189,1789.2,1789.1,3.01602218]
[1680557959919,1.58787189,1789.2,1789.1,3.01402218]
[1680557960825,1.58787189,1789.2,1789.1,2.99602218]
[1680557961148,1.86732189,1789.2,1789.1,3.79849598]
[1680557961511,1.58787189,1789.2,1789.1,3.79849598]
[1680557963180,1.58787189,1789.2,1789.1,1.0324738]
[1680557966618,2.44984637,1789.2,1789.0,0.018]
[1680557966829,1.89094637,1789.2,1789.0,0.018]
[1680557968724,2.79554266,1789.2,1789.0,0.018]
[1680557968889,0.99913655,1789.1,1788.8,0.76]
[1680557969103,0.27948,1789.0,1788.8,0.76]
[1680557969291,1.53248,1789.0,1788.8,0.76]
[1680557969798,1.253,1789.0,1788.8,0.76]
[1680557970128,2.26776103,1788.9,1788.8,0.76]
[1680557970275,3.10626103,1788.9,1788.8,0.76]
[1680557970476,4.22426103,1788.9,1788.8,0.76]
[1680557970787,7.22426103,1788.9,1788.8,0.76]
[1680557970993,8.77503954,1788.9,1788.8,0.76]
[1680557971317,8.77703954,1788.9,1788.8,0.76]
[1680557971533,0.23913655,1788.7,1788.2,0.002]
[1680557971697,0.23913655,1788.7,1788.2,0.78486345]
[1680557971698,1.52455,1788.6,1788.2,0.78486345]
[1680557971894,2.08364,1788.6,1788.3,2.76602218]
[1680557972098,2.08364,1788.6,1788.3,2.77202218]
[1680557972295,2.08364,1788.6,1788.3,0.006]
[1680557972507,1.253,1788.4,1788.2,0.76086345]
[1680557972779,0.27958,1788.4,1788.0,0.006]
[1680557973017,0.27958,1788.4,1788.1,2.76602218]
[1680557973018,0.83873,1788.4,1788.1,2.76602218]
[1680557973218,0.27958,1788.4,1788.1,2.77202218]
[1680557973788,0.02362448,1788.4,1788.1,2.77202218]
[1680557973990,0.02362448,1788.4,1788.2,1.037474]
[1680557974212,0.02362448,1788.4,1788.2,3.80949618]
[1680557974395,0.02362448,1788.4,1788.2,3.82749618]
[1680557975607,1.253,1788.6,1788.2,3.82749618]
[1680557976224,1.53255,1788.6,1788.2,4.27373565]
[1680557976417,1.53255,1788.6,1788.2,3.82749618]
[1680557976731,0.23913655,1788.5,1788.2,3.80949618]
[1680557976939,1.253,1788.6,1788.3,2.76602218]
[1680557977084,0.27955,1788.6,1788.3,2.79002218]
[1680557977284,0.51868655,1788.6,1788.3,2.77202218]
[1680557978016,0.51868655,1788.6,1788.4,1.0370491]
[1680557978521,0.27954,1788.7,1788.4,1.0370491]
[1680557979129,0.27954,1788.7,1788.4,1.0430491]
[1680557979352,0.8386,1788.7,1788.4,1.0430491]
[1680557979493,1.37187366,1788.7,1788.4,1.0430491]
[1680557979845,1.253,1788.6,1788.4,1.0370491]
[1680557979988,2.09168,1788.5,1788.4,1.0370491]
[1680557980896,2.09168,1788.5,1788.2,0.006]
[1680557981199,2.09168,1788.5,1788.1,0.76686345]
[1680557981603,2.09168,1788.5,1788.1,0.006]
[1680557981817,2.67828465,1788.5,1788.0,0.024]
[1680557982017,0.27959,1788.3,1788.0,2.79002218]
[1680557982591,0.83878,1788.3,1788.0,2.79002218]
[1680557983991,0.83878,1788.3,1788.0,0.024]
[1680557984193,2.08978,1788.3,1788.0,0.024]
[1680557984509,2.710593,1788.3,1788.0,0.024]
[1680557984708,1.459593,1788.3,1788.0,0.024]
[1680557984919,1.459593,1788.3,1788.0,0.006]
[1680557985392,1.459593,1788.3,1787.9,0.006]
[1680557986329,1.459593,1788.3,1787.8,0.124]
[1680557986644,1.3989593,1788.2,1787.8,0.106]
[1680557986805,1.95738,1788.1,1787.8,0.106]
[1680557987010,1.253,1788.0,1787.8,0.106]
[1680557987314,0.83896,1787.9,1787.8,0.1]
[1680557988708,1.160017,1787.9,1787.8,0.1]
[1680557990907,1.160017,1787.9,1787.8,1.14155742]
[1680557991508,2.411017,1787.9,1787.8,1.14155742]
[1680557993118,2.41084153,1787.9,1787.8,1.14155742]
[1680557993320,2.40884153,1787.9,1787.8,1.14155742]
[1680557994331,2.43246601,1787.9,1787.8,1.14155742]
[1680557994522,5.43246601,1787.9,1787.8,1.14155742]
[1680557994723,5.43446601,1787.9,1787.8,1.14155742]
[1680557996240,5.08978453,1787.9,1787.8,1.14155742]
[1680557997847,4.253,1787.9,1787.8,1.14155742]
[1680557998045,3.27965,1787.9,1787.8,1.14155742]
[1680557999026,0.83896,1787.9,1787.8,1.14155742]
[1680557999326,3.83896,1787.9,1787.8,1.14155742]
[1680557999639,0.83896,1787.9,1787.8,1.14155742]
[1680558002171,2.09196,1787.9,1787.8,1.14155742]
[1680558002533,4.53265,1787.9,1787.8,1.26571316]
[1680558003070,0.27965,1787.9,1787.8,1.26571316]
[1680558003383,3.83896,1787.9,1787.8,1.26571316]
[1680558003675,0.83896,1787.9,1787.8,1.14155742]
[1680558004672,2.09196,1787.9,1787.8,1.14155742]
[1680558004878,0.83896,1787.9,1787.8,1.14155742]
[1680558005957,4.255,1788.0,1787.8,1.14155742]
[1680558006260,3.27964,1788.0,1787.8,1.34179951]
[1680558006491,0.27964,1788.0,1787.8,1.34179951]
[1680558007493,0.83892,1788.0,1787.8,1.14155742]
[1680558010370,2.09192,1788.0,1787.8,1.14155742]
[1680558011369,2.09192,1788.0,1787.9,0.76086345]
[1680558011973,2.09192,1788.0,1787.9,1.8040476]
[1680558012201,0.83892,1788.0,1787.9,1.8040476]
[1680558012759,0.83892,1788.0,1787.9,1.04318415]
[1680558013061,8.53312035,1788.0,1787.9,1.04318415]
[1680558013263,8.53512035,1788.0,1787.9,1.04318415]
[1680558013964,8.53512035,1788.0,1787.8,0.1]
[1680558014165,1.253,1787.9,1787.8,0.1]
[1680558014495,2.09196,1787.9,1787.8,0.1]
[1680558015168,2.94547604,1787.9,1787.8,0.1]
[1680558015798,2.94181268,1787.9,1787.8,0.1]
[1680558017098,2.96543716,1787.9,1787.8,0.1]
[1680558019885,1.71610052,1787.9,1787.8,0.1]
[1680558020980,4.71610052,1787.9,1787.8,1.13811163]
[1680558022097,5.96110052,1787.9,1787.8,1.13811163]
[1680558022283,5.96310052,1787.9,1787.8,1.13811163]
[1680558024289,8.7291227,1787.9,1787.8,1.13811163]
[1680558024490,14.6251227,1787.9,1787.8,1.13811163]
[1680558024696,13.3801227,1787.9,1787.8,1.13811163]
[1680558025920,4.71810052,1787.9,1787.8,1.13811163]
[1680558026095,4.71610052,1787.9,1787.8,1.13811163]
[1680558027308,3.86258448,1787.9,1787.8,1.13811163]
[1680558028134,3.86258448,1787.9,1787.8,1.89897508]
[1680558028333,3.83896,1787.9,1787.8,1.89897508]
[1680558029496,0.27965,1787.9,1787.8,1.89897508]
[1680558029848,0.27965,1787.9,1787.8,1.13811163]
[1680558030001,0.27965,1787.9,1787.8,1.89897508]
[1680558030520,0.27965,1787.9,1787.8,1.13811163]
[1680558030719,0.83896,1787.9,1787.8,1.89897508]
[1680558034255,1.335516,1787.9,1787.8,1.89897508]
[1680558034816,1.335516,1787.9,1787.8,1.13811163]
[1680558035018,1.335516,1787.9,1787.8,1.89897508]
[1680558035252,1.335516,1787.9,1787.8,1.13811163]
[1680558035920,1.335516,1787.9,1787.8,1.69608982]
[1680558036320,0.83896,1787.9,1787.8,1.69608982]
[1680558037853,6.73496,1787.9,1787.8,1.69608982]
[1680558038051,9.74296,1787.9,1787.8,1.69608982]
[1680558038954,10.99596,1787.9,1787.8,1.69608982]
[1680558040253,13.76198218,1787.9,1787.8,1.69608982]
[1680558042162,12.50898218,1787.9,1787.8,1.69608982]
[1680558042329,12.50298218,1787.9,1787.8,1.69608982]
[1680558042535,12.50898218,1787.9,1787.8,1.69608982]
[1680558044233,12.50298218,1787.9,1787.8,1.69608982]
[1680558044749,12.50298218,1787.9,1787.8,2.45695327]
[1680558044946,12.50898218,1787.9,1787.8,2.45695327]
[1680558045320,9.74296,1787.9,1787.8,2.45695327]
[1680558046632,9.74296,1787.9,1787.8,1.69608982]
[1680558046838,9.74296,1787.9,1787.8,2.45695327]
[1680558047442,9.74296,1787.9,1787.8,1.69608982]
[1680558047648,9.74296,1787.9,1787.8,2.45695327]
[1680558048679,9.74296,1787.9,1787.8,1.69608982]
[1680558049859,11.29499402,1787.9,1787.8,1.69608982]
[1680558050260,14.0610162,1787.9,1787.8,1.69608982]
[1680558050456,15.3140162,1787.9,1787.8,1.69608982]
[1680558050670,16.28515573,1787.9,1787.8,1.69608982]
[1680558051058,16.28515573,1787.9,1787.8,0.1]
[1680558051261,16.86482149,1787.9,1787.7,0.06089999]
[1680558051458,16.86482149,1787.9,1787.4,0.76686345]
[1680558051459,5.896,1787.7,1787.3,0.68806022]
[1680558051658,5.13513655,1787.5,1787.3,0.68206022]
[1680558051858,5.13713655,1787.5,1787.3,0.1]
[1680558052060,0.27973,1787.4,1787.3,0.1]
[1680558055784,0.83997131,1787.4,1787.3,0.1]
[1680558055965,0.27973,1787.4,1787.3,0.1]
[1680558058091,0.8392,1787.4,1787.3,0.1]
[1680558059580,1.43683366,1787.4,1787.3,0.1]
[1680558059782,4.43683366,1787.4,1787.3,0.1]
[1680558060029,4.99077089,1787.4,1787.3,0.1]
[1680558062616,7.75679307,1787.4,1787.3,0.1]
[1680558062817,7.75879307,1787.4,1787.3,0.1]
[1680558063121,4.99277089,1787.4,1787.3,0.1]
[1680558063302,4.99077089,1787.4,1787.3,0.1]
[1680558066083,4.99077089,1787.4,1787.3,1.69930955]
[1680558068279,10.88677089,1787.4,1787.3,1.69930955]
[1680558068479,4.99277089,1787.4,1787.3,1.69930955]
[1680558068705,4.99077089,1787.4,1787.3,1.69930955]
[1680558069683,10.88677089,1787.4,1787.3,1.69930955]
[1680558069888,5.01639537,1787.4,1787.3,1.69930955]
[1680558070412,10.91239537,1787.4,1787.3,1.69930955]
[1680558070810,5.01639537,1787.4,1787.3,1.69930955]
[1680558071218,5.1586824,1787.4,1787.3,1.69930955]
[1680558071612,11.0546824,1787.4,1787.3,1.69930955]
[1680558072423,5.1586824,1787.4,1787.3,1.69930955]
[1680558072927,3.97795426,1787.4,1787.3,1.69930955]
[1680558073126,3.14228703,1787.4,1787.3,1.69930955]
[1680558073329,0.14228703,1787.4,1787.3,1.69930955]
[1680558073691,0.42201703,1787.4,1787.3,1.69930955]
[1680558073946,0.98148703,1787.4,1787.3,1.69930955]
[1680558076316,0.14228703,1787.4,1787.3,1.69930955]
[1680558077255,0.42201703,1787.4,1787.3,1.69930955]
[1680558077719,0.14228703,1787.4,1787.3,1.69930955]
[1680558078051,0.9793298,1787.4,1787.3,1.69930955]
[1680558078934,0.4198598,1787.4,1787.3,1.69930955]
[1680558079742,1.07725978,1787.4,1787.3,1.69930955]
[1680558079933,0.9793298,1787.4,1787.3,1.69930955]
[1680558080999,3.9793298,1787.4,1787.3,1.69930955]
[1680558085406,0.9793298,1787.4,1787.3,1.69930955]
[1680558085825,0.1401298,1787.4,1787.3,1.69930955]
[1680558086006,0.4198598,1787.4,1787.3,1.69930955]
[1680558086201,3.4198598,1787.4,1787.3,1.69930955]
[1680558086406,3.9793298,1787.4,1787.3,1.69930955]
[1680558087424,0.9793298,1787.4,1787.3,1.69930955]
[1680558094582,0.9293298,1787.4,1787.3,1.69930955]
[1680558096473,0.0901298,1787.4,1787.3,2.50950675]
[1680558096852,0.27969,1787.7,1787.3,14.39859355]
[1680558097060,0.83903,1787.8,1787.4,0.58263229]
[1680558097272,0.83903,1787.8,1787.4,2.08095487]
[1680558097639,3.83903,1787.8,1787.4,2.08095487]
[1680558098037,3.83903,1787.8,1787.5,1.5225198]
[1680558098543,3.27968,1787.8,1787.5,1.5225198]
[1680558098739,3.0,1787.8,1787.5,1.88306727]
[1680558098982,3.14213117,1787.8,1787.5,2.46569956]
[1680558099387,0.14213117,1787.8,1787.5,2.46569956]
[1680558100857,0.14213117,1787.8,1787.5,1.88306727]
[1680558101194,0.14213117,1787.8,1787.6,0.18830673]
[1680558107963,0.14213117,1787.8,1787.6,2.95432891]
[1680558109463,0.12861326,1787.8,1787.6,2.95432891]
[1680558109805,0.1154398,1787.8,1787.6,2.95432891]
[1680558110003,0.11306844,1787.8,1787.6,2.95432891]
[1680558110305,0.11306844,1787.8,1787.7,0.29543289]
[1680558110960,0.11306844,1787.8,1787.7,1.80727976]
[1680558112404,0.39273844,1787.8,1787.7,1.51184687]
[1680558113823,0.11306844,1787.8,1787.7,1.51184687]
[1680558114009,0.39273844,1787.8,1787.7,1.51184687]
[1680558114212,0.95207844,1787.8,1787.7,1.51184687]
[1680558117228,3.95207844,1787.8,1787.7,1.51184687]
[1680558117386,0.95207844,1787.8,1787.7,1.51184687]
[1680558121733,0.85207844,1787.8,1787.7,1.51184687]
[1680558123094,0.29273844,1787.8,1787.7,1.51184687]
[1680558123502,0.85207844,1787.8,1787.7,1.51184687]
[1680558124403,0.29273844,1787.8,1787.7,1.51184687]
[1680558126604,0.01306844,1787.8,1787.7,1.51184687]
[1680558127113,0.29273844,1787.8,1787.7,1.51184687]
[1680558129765,0.27967,1787.8,1787.7,1.51184687]
[1680558131726,0.27967,1787.8,1787.7,2.82184156]
[1680558131913,0.27967,1787.8,1787.7,1.51184687]
[1680558133444,3.02362448,1788.0,1787.7,1.51184687]
[1680558133633,3.83893,1788.0,1787.7,1.51184687]
[1680558133928,0.27965,1788.0,1787.7,1.51184687]
[1680558134152,0.27965,1788.0,1787.8,0.15118469]
[1680558134317,0.27964,1788.0,1787.8,0.15118469]
[1680558135050,4.41130188,1788.1,1787.9,1.50283263]
[1680558136145,4.41130188,1788.1,1787.7,4.9911]
[1680558136465,4.41130188,1788.1,1787.7,4.9891]
[1680558140383,4.41130188,1788.1,1787.7,4.9871]
[1680558140534,4.41730188,1788.1,1787.7,4.9831]
[1680558140735,5.00296764,1788.1,1787.7,4.9831]
[1680558140959,5.00496764,1788.1,1787.8,1.50304518]
[1680558144865,5.87681706,1788.1,1787.8,1.50304518]
[1680558145095,8.70174896,1788.0,1787.8,1.50304518]
[1680558145397,1.95759,1787.9,1787.8,1.50304518]
[1680558145598,11.82472505,1787.9,1787.8,1.50304518]
[1680558145789,13.43540307,1787.9,1787.8,1.50304518]
[1680558146098,14.02106883,1787.9,1787.4,0.59063229]
[1680558146399,13.04993378,1787.9,1787.5,35.0]
[1680558146560,7.15393378,1787.9,1787.5,35.026]
[1680558146762,7.15393378,1787.9,1787.5,35.008]
[1680558146990,5.54525576,1787.9,1787.6,1.50471781]
[1680558147256,3.84096,1787.9,1787.6,1.50471781]
[1680558147471,0.83896,1787.9,1787.6,1.50471781]
[1680558148197,4.43259576,1788.0,1787.6,4.27073999]
[1680558148403,0.27966,1787.9,1787.6,4.27073999]
[1680558148698,0.27966,1787.9,1787.7,3.19309618]
[1680558150201,0.83897,1787.9,1787.7,3.19309618]
[1680558151041,0.27636581,1787.9,1787.7,3.19309618]
[1680558151619,0.27636581,1787.9,1787.7,3.19909618]
[1680558151823,0.27636581,1787.9,1787.8,0.31990962]
[1680558152019,0.83893,1788.0,1787.8,0.31990962]
[1680558152225,0.27965,1787.9,1787.8,0.31990962]
[1680558152723,0.83893,1788.0,1787.8,0.31990962]
[1680558153335,0.27965,1788.0,1787.8,0.31990962]
[1680558154147,0.83893,1788.0,1787.7,12.106074]
[1680558154757,0.83893,1788.0,1787.7,11.679]
[1680558154949,3.83893,1788.0,1787.7,11.673]
[1680558155272,3.83893,1788.0,1787.7,11.679]
[1680558156049,3.83893,1788.0,1787.8,1.50334217]
[1680558157066,3.83893,1788.0,1787.9,35.0]
[1680558157360,3.83893,1788.0,1787.9,35.008]
[1680558158072,3.83893,1788.0,1787.9,35.002]
[1680558158370,4.8099955,1788.0,1787.9,35.002]
[1680558158541,4.8099955,1788.0,1787.9,35.008]
[1680558158742,4.8099944,1788.0,1787.9,35.008]
[1680558158944,3.83893,1788.0,1787.9,35.008]
[1680558159243,4.80999284,1788.0,1787.9,35.008]
[1680558159460,5.4016586,1788.0,1787.9,35.002]
[1680558159661,5.4036586,1788.0,1787.9,35.002]
[1680558160988,12.37593959,1788.0,1787.9,35.002]
[1680558162342,6.47993959,1788.0,1787.9,35.002]
[1680558168247,5.4036586,1788.0,1787.9,35.002]
[1680558168451,0.008,1788.0,1787.9,35.002]
[1680558168663,0.85203188,1788.1,1787.9,35.002]
[1680558169795,0.85203188,1788.1,1787.9,35.008]
[1680558170004,0.85203188,1788.1,1787.9,39.85544422]
[1680558171062,0.85203188,1788.1,1788.0,1.50145098]
[1680558171692,0.85203188,1788.1,1788.0,36.50145098]
[1680558171894,0.85203188,1788.1,1788.0,36.50945098]
[1680558174819,1.41128188,1788.1,1788.0,36.50945098]
[1680558175181,1.41128188,1788.1,1788.0,40.16039608]
[1680558175898,1.40841902,1788.1,1788.0,40.16039608]
[1680558177119,1.40841902,1788.1,1788.0,36.50945098]
[1680558177412,1.40841902,1788.1,1788.0,36.50345098]
[1680558177790,0.84916902,1788.1,1788.0,36.50345098]
[1680558178402,1.40841902,1788.1,1788.0,36.50345098]
[1680558185983,0.27962,1788.1,1788.0,39.26947316]
[1680558186185,0.27962,1788.1,1788.0,43.19702048]
[1680558186384,0.27962,1788.2,1788.0,43.20302048]
[1680558186620,0.27962,1788.2,1788.0,8.19702048]
[1680558186801,0.27962,1788.2,1788.0,4.27547316]
[1680558186997,0.27962,1788.2,1788.1,35.0]
[1680558187234,3.98299701,1788.3,1788.1,35.002]
[1680558187432,3.42380701,1788.3,1788.1,35.002]
[1680558187636,3.41780701,1788.3,1788.2,3.5002]
[1680558187932,3.42380701,1788.3,1788.2,3.5002]
[1680558188143,3.42380701,1788.3,1788.2,5.00138546]
[1680558188302,3.42380701,1788.3,1788.2,5.00338546]
[1680558189425,3.98299701,1788.3,1788.2,5.00338546]
[1680558193187,3.42380701,1788.3,1788.2,5.00338546]
[1680558193389,3.14420701,1788.3,1788.2,5.00338546]
[1680558193882,0.42379701,1788.3,1788.2,5.00338546]
[1680558194089,3.13820701,1788.3,1788.2,5.00338546]
[1680558194384,3.42379701,1788.3,1788.2,5.00338546]
[1680558195331,3.14420701,1788.3,1788.2,5.00338546]
[1680558195532,3.42379701,1788.3,1788.2,5.00338546]
[1680558195739,0.42379701,1788.3,1788.2,5.00338546]
[1680558195894,0.13820701,1788.3,1788.2,5.00338546]
[1680558197228,0.13820701,1788.3,1788.2,1.50318546]
[1680558197530,0.13820701,1788.3,1788.2,39.26720764]
[1680558197834,0.13820701,1788.3,1788.2,39.29320764]
[1680558198018,0.13820701,1788.3,1788.2,39.26920764]
[1680558198696,0.11000001,1788.5,1788.2,39.26920764]
[1680558198697,0.38956001,1788.5,1788.2,39.26920764]
[1680558198893,0.38956001,1788.5,1788.3,6.69294294]
[1680558199220,0.11000001,1788.5,1788.3,6.69494294]
[1680558199420,0.10627519,1788.5,1788.3,6.69494294]
[1680558199599,0.10627519,1788.5,1788.4,0.66949429]
[1680558200007,0.38583519,1788.5,1788.4,0.66949429]
[1680558200213,0.10627519,1788.5,1788.4,0.66949429]
[1680558200606,0.24343819,1788.5,1788.4,0.66949429]
[1680558200805,0.24343819,1788.5,1788.4,3.43551647]
[1680558201020,0.24343819,1788.5,1788.4,4.93384255]
[1680558201248,0.52299819,1788.5,1788.4,4.93384255]
[1680558202340,0.24343819,1788.5,1788.4,4.93384255]
[1680558202902,0.52299819,1788.5,1788.4,4.93384255]
[1680558204250,0.24343819,1788.5,1788.4,4.93384255]
[1680558205045,0.52299819,1788.5,1788.4,4.93384255]
[1680558206644,0.24343819,1788.5,1788.4,4.95184255]
[1680558206948,0.24343819,1788.5,1788.4,4.95784255]
[1680558208068,0.24343819,1788.5,1788.4,39.95784255]
[1680558208237,0.24343819,1788.5,1788.4,39.94184255]
[1680558209868,0.24343819,1788.5,1788.4,39.94184255]
[1680558210051,0.24343819,1788.5,1788.4,37.17582037]
[1680558210446,0.24343819,1788.5,1788.4,37.19382037]
[1680558210647,0.24343819,1788.5,1788.4,39.95984255]
[1680558217946,0.24343819,1788.5,1788.4,37.19382037]
[1680558218377,0.52299819,1788.5,1788.4,37.19382037]
[1680558218687,0.24343819,1788.5,1788.4,37.19382037]
[1680558220344,0.23965086,1788.5,1788.4,37.18782037]
[1680558221097,0.23965086,1788.5,1788.4,37.16982037]
[1680558222244,0.51921086,1788.5,1788.4,37.16982037]
[1680558223254,0.51921086,1788.5,1788.4,36.50032608]
[1680558223454,1.07833086,1788.5,1788.4,36.50032608]
[1680558227205,1.08433086,1788.5,1788.4,36.50032608]
[1680558236923,6.98033086,1788.5,1788.4,36.50032608]
[1680558237117,10.68333086,1788.5,1788.4,36.50032608]
[1680558237717,12.00364952,1788.5,1788.4,36.50032608]
[1680558239550,10.68333086,1788.5,1788.4,36.50032608]
[1680558239750,4.08633086,1788.5,1788.4,36.50032608]